[Event "Titled Tuesday Blitz April 11 Early 2023"]
[White "Winkels, Marcel"]
[Black "Rodriguez Santiago, Jaime"]
[WhiteFideId "1003887"]
[BlackFideId "3100898"]
[WhiteElo "1900"]
[BlackElo "2025"]
[Result "0-1"]
[Round "06"]
[TimeControl "180+2"]
[Date "2023.04.11"]
[WhiteClock "0:00:02"]
[BlackClock "0:00:16"]

1. d4 {[%clk 0:03:00]}  Nf6 {[%clk 0:02:58]} 2. Nc3 {[%clk 0:03:00]}  d5 {[%clk 0:02:53]} 3. Bf4 {[%clk 0:03:00]}  a6 {[%clk 0:02:50]} 4. e3 {[%clk 0:02:59]}  c5 {[%clk 0:02:50]} 5. Nf3 {[%clk 0:02:46]}  cxd4 {[%clk 0:02:48]} 6. exd4 {[%clk 0:02:45]}  Nc6 {[%clk 0:02:47]} 7. Bd3 {[%clk 0:02:44]}  Bg4 {[%clk 0:02:45]} 8. Be2 {[%clk 0:02:35]}  e6 {[%clk 0:02:41]} 9. O-O {[%clk 0:02:30]}  Be7 {[%clk 0:02:37]} 10. Ne5 {[%clk 0:02:18]}  Bxe2 {[%clk 0:02:33]} 11. Nxe2 {[%clk 0:02:19]}  Rc8 {[%clk 0:02:28]} 12. c3 {[%clk 0:02:18]}  O-O {[%clk 0:02:26]} 13. Ng3 {[%clk 0:02:18]}  b5 {[%clk 0:02:19]} 14. a3 {[%clk 0:02:16]}  a5 {[%clk 0:02:17]} 15. Qe2 {[%clk 0:02:11]}  Qb6 {[%clk 0:02:08]} 16. Bg5 {[%clk 0:02:07]}  Rfd8 {[%clk 0:02:02]} 17. f4 {[%clk 0:02:02]}  b4 {[%clk 0:01:56]} 18. axb4 {[%clk 0:02:01]}  axb4 {[%clk 0:01:56]} 19. f5 {[%clk 0:01:57]}  bxc3 {[%clk 0:01:42]} 20. bxc3 {[%clk 0:01:20]}  Nxe5 {[%clk 0:01:27]} 21. Qxe5 {[%clk 0:01:17]}  Rxc3 {[%clk 0:01:23]} 22. Rfb1 {[%clk 0:00:58]}  Qc7 {[%clk 0:01:10]} 23. Qe1 {[%clk 0:00:56]}  h6 {[%clk 0:01:03]} 24. Bd2 {[%clk 0:00:47]}  Rc6 {[%clk 0:01:01]} 25. Rc1 {[%clk 0:00:37]}  Rxc1 {[%clk 0:00:56]} 26. Rxc1 {[%clk 0:00:35]}  Qb6 {[%clk 0:00:54]} 27. fxe6 {[%clk 0:00:24]}  fxe6 {[%clk 0:00:49]} 28. Bc3 {[%clk 0:00:19]}  Rc8 {[%clk 0:00:45]} 29. Qe3 {[%clk 0:00:18]}  Ng4 {[%clk 0:00:43]} 30. Qf4 {[%clk 0:00:16]}  Bg5 {[%clk 0:00:39]} 31. Qxg4 {[%clk 0:00:14]}  Bxc1 {[%clk 0:00:38]} 32. Nh5 {[%clk 0:00:14]}  Bg5 {[%clk 0:00:36]} 33. Bd2 {[%clk 0:00:12]}  Rf8 {[%clk 0:00:30]} 34. h4 {[%clk 0:00:05]}  Qb1+ {[%clk 0:00:17]} 35. Kh2 {[%clk 0:00:04]}  Qe4 {[%clk 0:00:16]} 36. Qxe4 {[%clk 0:00:02]}  dxe4 {[%clk 0:00:16]} 37. hxg5 {[%clk 0:00:03]}  hxg5 {[%clk 0:00:17]} 38. Ng3 {[%clk 0:00:03]}  Rd8 {[%clk 0:00:16]} 39. Nxe4 {[%clk 0:00:02]}  Rxd4 {[%clk 0:00:16]} 0-1


[Site "https://www.chess.com"]

[Event "Titled Tuesday Blitz April 11 Early 2023"]
[White "Zampronha, Wladimir Camilo"]
[Black "Chincholimath, Halsagar"]
[WhiteFideId "2103087"]
[BlackFideId "5022487"]
[WhiteElo "2176"]
[BlackElo "1737"]
[Result "1-0"]
[Round "06"]
[TimeControl "180+2"]
[Date "2023.04.11"]
[WhiteClock "0:00:17"]
[BlackClock "0:00:13"]

1. e4 {[%clk 0:03:00]}  e5 {[%clk 0:02:59]} 2. Nf3 {[%clk 0:03:01]}  Nc6 {[%clk 0:02:58]} 3. d4 {[%clk 0:03:02]}  exd4 {[%clk 0:02:58]} 4. Nxd4 {[%clk 0:03:03]}  Bc5 {[%clk 0:02:58]} 5. Be3 {[%clk 0:03:02]}  Qe7 {[%clk 0:02:53]} 6. c3 {[%clk 0:02:58]}  Nf6 {[%clk 0:02:51]} 7. Nxc6 {[%clk 0:02:40]}  dxc6 {[%clk 0:02:47]} 8. Bxc5 {[%clk 0:02:41]}  Qxc5 {[%clk 0:02:46]} 9. Bd3 {[%clk 0:02:41]}  O-O {[%clk 0:02:35]} 10. O-O {[%clk 0:02:41]}  Re8 {[%clk 0:02:33]} 11. Qc2 {[%clk 0:02:41]}  Bg4 {[%clk 0:02:23]} 12. Nd2 {[%clk 0:02:38]}  Rad8 {[%clk 0:02:22]} 13. Rfe1 {[%clk 0:01:39]}  Qd6 {[%clk 0:02:14]} 14. Re3 {[%clk 0:01:40]}  Bh5 {[%clk 0:01:45]} 15. e5 {[%clk 0:01:38]}  Rxe5 {[%clk 0:01:43]} 16. Nc4 {[%clk 0:01:38]}  Rxe3 {[%clk 0:01:00]} 17. Nxd6 {[%clk 0:01:36]}  Rxd3 {[%clk 0:01:01]} 18. Qxd3 {[%clk 0:01:34]}  Rxd6 {[%clk 0:01:01]} 19. Qe3 {[%clk 0:01:28]}  h6 {[%clk 0:00:46]} 20. f3 {[%clk 0:01:12]}  Nd5 {[%clk 0:00:43]} 21. Qxa7 {[%clk 0:01:09]}  b6 {[%clk 0:00:40]} 22. Rd1 {[%clk 0:01:02]}  Re6 {[%clk 0:00:37]} 23. Kf2 {[%clk 0:00:48]}  Bg6 {[%clk 0:00:31]} 24. Re1 {[%clk 0:00:42]}  Rd6 {[%clk 0:00:29]} 25. Qa8+ {[%clk 0:00:34]}  Kh7 {[%clk 0:00:30]} 26. a4 {[%clk 0:00:34]}  Nf4 {[%clk 0:00:27]} 27. Re8 {[%clk 0:00:33]}  Bc2 {[%clk 0:00:24]} 28. Rh8+ {[%clk 0:00:31]}  Kg6 {[%clk 0:00:24]} 29. Rd8 {[%clk 0:00:19]}  Re6 {[%clk 0:00:20]} 30. Rd2 {[%clk 0:00:19]}  Bf5 {[%clk 0:00:18]} 31. Qd8 {[%clk 0:00:19]}  h5 {[%clk 0:00:15]} 32. g3 {[%clk 0:00:19]}  Nh3+ {[%clk 0:00:14]} 33. Kg2 {[%clk 0:00:19]}  Re1 {[%clk 0:00:14]} 34. Rd1 {[%clk 0:00:17]}  Re2+ {[%clk 0:00:13]} 35. Kf1 {[%clk 0:00:17]}  Rxh2 {[%clk 0:00:12]} 36. g4 {[%clk 0:00:16]}  Rf2+ {[%clk 0:00:11]} 37. Ke1 {[%clk 0:00:16]}  Bc2 {[%clk 0:00:12]} 38. gxh5+ {[%clk 0:00:15]}  Kxh5 {[%clk 0:00:08]} 39. Qh8+ {[%clk 0:00:15]}  Kg5 {[%clk 0:00:07]} 40. Qxh3 {[%clk 0:00:16]}  Rh2 {[%clk 0:00:07]} 41. Qg3+ {[%clk 0:00:16]}  Kf5 {[%clk 0:00:05]} 42. Qxh2 {[%clk 0:00:17]}  Bxd1 {[%clk 0:00:04]} 43. Kxd1 {[%clk 0:00:17]}  g5 {[%clk 0:00:05]} 44. Kd2 {[%clk 0:00:17]}  g4 {[%clk 0:00:06]} 45. Qf2 {[%clk 0:00:18]}  g3 {[%clk 0:00:06]} 46. Qxg3 {[%clk 0:00:18]}  f6 {[%clk 0:00:06]} 47. Qg4+ {[%clk 0:00:19]}  Ke5 {[%clk 0:00:04]} 48. Qe4+ {[%clk 0:00:20]}  Kd6 {[%clk 0:00:04]} 49. f4 {[%clk 0:00:21]}  c5 {[%clk 0:00:05]} 50. Qf5 {[%clk 0:00:21]}  b5 {[%clk 0:00:06]} 51. a5 {[%clk 0:00:21]}  b4 {[%clk 0:00:06]} 52. c4 {[%clk 0:00:20]}  c6 {[%clk 0:00:06]} 53. a6 {[%clk 0:00:21]}  Kc7 {[%clk 0:00:07]} 54. a7 {[%clk 0:00:21]}  Kb6 {[%clk 0:00:08]} 55. Qxf6 {[%clk 0:00:22]}  b3 {[%clk 0:00:09]} 56. Qxc6+ {[%clk 0:00:22]}  Kxa7 {[%clk 0:00:08]} 57. Qxc5+ {[%clk 0:00:21]}  Ka8 {[%clk 0:00:09]} 58. Qb4 {[%clk 0:00:21]}  Ka7 {[%clk 0:00:10]} 59. f5 {[%clk 0:00:20]}  Ka8 {[%clk 0:00:11]} 60. f6 {[%clk 0:00:20]}  Ka7 {[%clk 0:00:11]} 61. f7 {[%clk 0:00:20]}  Ka6 {[%clk 0:00:12]} 62. f8=Q {[%clk 0:00:18]}  Ka7 {[%clk 0:00:13]} 63. Qfb8+ {[%clk 0:00:17]} 1-0


[Site "https://www.chess.com"]

[Event "Titled Tuesday Blitz April 11 Early 2023"]
[White "dDobravcan"]
[Black "Lenaerts, Lennert"]
[BlackFideId "211435"]
[WhiteElo "2140"]
[BlackElo "2334"]
[Result "0-1"]
[Round "06"]
[TimeControl "180+2"]
[Date "2023.04.11"]
[WhiteClock "0:00:05"]
[BlackClock "0:01:21"]

1. e4 {[%clk 0:03:00]}  e5 {[%clk 0:02:58]} 2. Nf3 {[%clk 0:02:59]}  Nc6 {[%clk 0:02:58]} 3. Bb5 {[%clk 0:02:58]}  g6 {[%clk 0:02:58]} 4. O-O {[%clk 0:02:55]}  Bg7 {[%clk 0:02:58]} 5. c3 {[%clk 0:02:55]}  d6 {[%clk 0:02:58]} 6. h3 {[%clk 0:02:53]}  Nf6 {[%clk 0:02:58]} 7. Re1 {[%clk 0:02:52]}  O-O {[%clk 0:02:56]} 8. d4 {[%clk 0:02:50]}  Bd7 {[%clk 0:02:57]} 9. Nbd2 {[%clk 0:02:42]}  Nxd4 {[%clk 0:02:54]} 10. Nxd4 {[%clk 0:02:37]}  exd4 {[%clk 0:02:54]} 11. Bxd7 {[%clk 0:02:30]}  dxc3 {[%clk 0:02:52]} 12. Ba4 {[%clk 0:02:24]}  cxd2 {[%clk 0:02:49]} 13. Bxd2 {[%clk 0:02:22]}  Nd7 {[%clk 0:02:50]} 14. Rb1 {[%clk 0:02:14]}  Nc5 {[%clk 0:02:50]} 15. Bc2 {[%clk 0:02:13]}  a5 {[%clk 0:02:50]} 16. Be3 {[%clk 0:01:52]}  Re8 {[%clk 0:02:29]} 17. f3 {[%clk 0:01:48]}  b6 {[%clk 0:02:26]} 18. b3 {[%clk 0:01:42]}  Qh4 {[%clk 0:02:24]} 19. Bf2 {[%clk 0:01:34]}  Qh5 {[%clk 0:02:22]} 20. a3 {[%clk 0:01:28]}  Rad8 {[%clk 0:02:19]} 21. b4 {[%clk 0:01:27]}  axb4 {[%clk 0:02:20]} 22. axb4 {[%clk 0:01:26]}  Ne6 {[%clk 0:02:20]} 23. Bb3 {[%clk 0:01:23]}  Ra8 {[%clk 0:02:18]} 24. Kh2 {[%clk 0:01:06]}  Be5+ {[%clk 0:02:13]} 25. g3 {[%clk 0:01:06]}  Ng5 {[%clk 0:02:09]} 26. f4 {[%clk 0:00:53]}  Nf3+ {[%clk 0:02:05]} 27. Kg2 {[%clk 0:00:49]}  Nxe1+ {[%clk 0:02:05]} 28. Qxe1 {[%clk 0:00:49]}  Bg7 {[%clk 0:02:04]} 29. Rc1 {[%clk 0:00:41]}  Ra3 {[%clk 0:02:02]} 30. Bd1 {[%clk 0:00:34]}  Qb5 {[%clk 0:01:49]} 31. Rxc7 {[%clk 0:00:34]}  Ra1 {[%clk 0:01:48]} 32. Qd2 {[%clk 0:00:27]}  Rxe4 {[%clk 0:01:39]} 33. Qxd6 {[%clk 0:00:18]}  Re8 {[%clk 0:01:39]} 34. Rb7 {[%clk 0:00:14]}  Rxd1 {[%clk 0:01:28]} 35. Qxd1 {[%clk 0:00:12]}  Qc6+ {[%clk 0:01:29]} 36. Qf3 {[%clk 0:00:12]}  Qc2 {[%clk 0:01:22]} 37. Rxb6 {[%clk 0:00:10]}  h5 {[%clk 0:01:22]} 38. Rb7 {[%clk 0:00:09]}  Re2 {[%clk 0:01:22]} 39. g4 {[%clk 0:00:08]}  Bd4 {[%clk 0:01:22]} 40. gxh5 {[%clk 0:00:05]}  Rxf2+ {[%clk 0:01:21]} 0-1


[Site "https://www.chess.com"]

[Event "Titled Tuesday Blitz April 11 Early 2023"]
[White "Munro, Allan"]
[Black "Kaplan, Avi Harrison"]
[WhiteFideId "7700245"]
[BlackFideId "30934559"]
[WhiteElo "2084"]
[BlackElo "1983"]
[Result "0-1"]
[Round "06"]
[TimeControl "180+2"]
[Date "2023.04.11"]
[WhiteClock "0:00:05"]
[BlackClock "0:00:37"]

1. d4 {[%clk 0:03:00]}  Na6 {[%clk 0:03:00]} 2. e4 {[%clk 0:02:56]}  Nh6 {[%clk 0:03:01]} 3. f4 {[%clk 0:02:39]}  d6 {[%clk 0:03:01]} 4. Nf3 {[%clk 0:02:38]}  Bg4 {[%clk 0:03:01]} 5. h3 {[%clk 0:02:32]}  Bxf3 {[%clk 0:03:01]} 6. Qxf3 {[%clk 0:02:33]}  g6 {[%clk 0:03:00]} 7. Bc4 {[%clk 0:02:12]}  c6 {[%clk 0:03:00]} 8. O-O {[%clk 0:02:01]}  Bg7 {[%clk 0:03:00]} 9. c3 {[%clk 0:02:01]}  O-O {[%clk 0:02:59]} 10. f5 {[%clk 0:01:56]}  d5 {[%clk 0:02:49]} 11. exd5 {[%clk 0:01:39]}  Nxf5 {[%clk 0:02:49]} 12. dxc6 {[%clk 0:01:35]}  Bxd4+ {[%clk 0:02:40]} 13. Kh1 {[%clk 0:01:16]}  Be5 {[%clk 0:02:36]} 14. Bf4 {[%clk 0:01:12]}  Bxf4 {[%clk 0:02:25]} 15. Qxf4 {[%clk 0:01:13]}  e5 {[%clk 0:02:25]} 16. Qxe5 {[%clk 0:01:06]}  Qg5 {[%clk 0:02:22]} 17. Kh2 {[%clk 0:00:57]}  Rae8 {[%clk 0:01:51]} 18. Qf4 {[%clk 0:00:57]}  Qe7 {[%clk 0:01:48]} 19. Nd2 {[%clk 0:00:48]}  Nc5 {[%clk 0:01:43]} 20. Rae1 {[%clk 0:00:41]}  Qxe1 {[%clk 0:01:41]} 21. Rxe1 {[%clk 0:00:41]}  Rxe1 {[%clk 0:01:39]} 22. Qf2 {[%clk 0:00:36]}  Re5 {[%clk 0:01:32]} 23. Nf3 {[%clk 0:00:34]}  Ne4 {[%clk 0:01:32]} 24. Qxa7 {[%clk 0:00:29]}  Ree8 {[%clk 0:01:20]} 25. Qxb7 {[%clk 0:00:27]}  Ned6 {[%clk 0:01:16]} 26. Qd7 {[%clk 0:00:23]}  Nxc4 {[%clk 0:01:15]} 27. c7 {[%clk 0:00:19]}  Nxb2 {[%clk 0:01:13]} 28. Ng5 {[%clk 0:00:17]}  Nh6 {[%clk 0:01:06]} 29. a4 {[%clk 0:00:12]}  Nc4 {[%clk 0:01:05]} 30. Qd5 {[%clk 0:00:08]}  Nb6 {[%clk 0:01:02]} 31. Qc6 {[%clk 0:00:08]}  Nc8 {[%clk 0:00:58]} 32. a5 {[%clk 0:00:08]}  Re5 {[%clk 0:00:54]} 33. h4 {[%clk 0:00:06]}  Rxa5 {[%clk 0:00:52]} 34. Qd7 {[%clk 0:00:05]}  Rc5 {[%clk 0:00:39]} 35. Ne4 {[%clk 0:00:05]}  Re5 {[%clk 0:00:37]} 36. Nf6+ {[%clk 0:00:05]}  Kg7 {[%clk 0:00:37]} 0-1


[Site "https://www.chess.com"]

[Event "Titled Tuesday Blitz April 11 Early 2023"]
[White "ajedrez-facil"]
[Black "Mesa Cruz, Juan Carlos"]
[BlackFideId "6423400"]
[WhiteElo "2115"]
[BlackElo "2131"]
[Result "1-0"]
[Round "06"]
[TimeControl "180+2"]
[Date "2023.04.11"]
[WhiteClock "0:00:47"]
[BlackClock "0:00:40"]

1. e4 {[%clk 0:03:00]}  c5 {[%clk 0:02:59]} 2. Nf3 {[%clk 0:03:00]}  d6 {[%clk 0:02:58]} 3. d4 {[%clk 0:03:01]}  cxd4 {[%clk 0:02:58]} 4. Qxd4 {[%clk 0:03:02]}  Nf6 {[%clk 0:02:57]} 5. Nc3 {[%clk 0:03:01]}  Bd7 {[%clk 0:02:55]} 6. Bc4 {[%clk 0:03:01]}  Nc6 {[%clk 0:02:54]} 7. Qd3 {[%clk 0:03:01]}  Rc8 {[%clk 0:02:52]} 8. Bb3 {[%clk 0:03:01]}  g6 {[%clk 0:02:44]} 9. Bf4 {[%clk 0:02:58]}  Bg7 {[%clk 0:02:43]} 10. h3 {[%clk 0:02:52]}  O-O {[%clk 0:02:29]} 11. Rd1 {[%clk 0:02:49]}  Nb4 {[%clk 0:02:27]} 12. Qd2 {[%clk 0:02:46]}  Rxc3 {[%clk 0:02:20]} 13. Qxc3 {[%clk 0:02:34]}  Nfd5 {[%clk 0:02:19]} 14. Qd2 {[%clk 0:02:33]}  Nxf4 {[%clk 0:02:18]} 15. Qxf4 {[%clk 0:02:34]}  Bxb2 {[%clk 0:02:17]} 16. O-O {[%clk 0:02:33]}  a5 {[%clk 0:02:13]} 17. e5 {[%clk 0:02:32]}  a4 {[%clk 0:02:12]} 18. Qxb4 {[%clk 0:02:18]}  axb3 {[%clk 0:02:06]} 19. exd6 {[%clk 0:02:10]}  Bf6 {[%clk 0:01:42]} 20. axb3 {[%clk 0:02:03]}  Re8 {[%clk 0:01:35]} 21. Rfe1 {[%clk 0:02:00]}  Qc8 {[%clk 0:01:25]} 22. c4 {[%clk 0:01:54]}  Bc6 {[%clk 0:01:20]} 23. Nd4 {[%clk 0:01:28]}  Bxd4 {[%clk 0:01:04]} 24. Rxd4 {[%clk 0:01:28]}  exd6 {[%clk 0:01:05]} 25. Rxe8+ {[%clk 0:01:26]}  Qxe8 {[%clk 0:01:05]} 26. Qd2 {[%clk 0:01:20]}  Qe5 {[%clk 0:01:01]} 27. Rxd6 {[%clk 0:01:18]}  Qa1+ {[%clk 0:01:00]} 28. Qd1 {[%clk 0:01:14]}  Qe5 {[%clk 0:00:51]} 29. Rd8+ {[%clk 0:01:14]}  Be8 {[%clk 0:00:51]} 30. Qd7 {[%clk 0:01:03]}  Kf8 {[%clk 0:00:48]} 31. Qd6+ {[%clk 0:00:54]}  Qxd6 {[%clk 0:00:45]} 32. Rxd6 {[%clk 0:00:55]}  Ke7 {[%clk 0:00:45]} 33. Rd4 {[%clk 0:00:55]}  Bc6 {[%clk 0:00:45]} 34. f4 {[%clk 0:00:53]}  Ke6 {[%clk 0:00:43]} 35. Kf2 {[%clk 0:00:53]}  h5 {[%clk 0:00:44]} 36. g4 {[%clk 0:00:53]}  hxg4 {[%clk 0:00:42]} 37. hxg4 {[%clk 0:00:53]}  g5 {[%clk 0:00:43]} 38. fxg5 {[%clk 0:00:50]}  Ke5 {[%clk 0:00:44]} 39. Ke3 {[%clk 0:00:47]}  b6 {[%clk 0:00:40]} 40. Rf4 {[%clk 0:00:47]} 1-0


[Site "https://www.chess.com"]

[Event "Titled Tuesday Blitz April 11 Early 2023"]
[White "Tarnowska, Aleksandra"]
[Black "Jiganchine, Roman"]
[WhiteFideId "1180967"]
[BlackFideId "2603667"]
[WhiteElo "1776"]
[BlackElo "2257"]
[Result "0-1"]
[Round "06"]
[TimeControl "180+2"]
[Date "2023.04.11"]
[WhiteClock "0:00:16"]
[BlackClock "0:00:10"]

1. e4 {[%clk 0:02:57]}  c6 {[%clk 0:02:59]} 2. d4 {[%clk 0:02:57]}  d5 {[%clk 0:02:59]} 3. Nc3 {[%clk 0:02:58]}  dxe4 {[%clk 0:02:59]} 4. Nxe4 {[%clk 0:02:58]}  Nf6 {[%clk 0:02:59]} 5. Nxf6+ {[%clk 0:02:58]}  exf6 {[%clk 0:03:00]} 6. Nf3 {[%clk 0:02:58]}  Bd6 {[%clk 0:03:01]} 7. Be3 {[%clk 0:02:58]}  O-O {[%clk 0:03:00]} 8. Qd2 {[%clk 0:02:59]}  Bg4 {[%clk 0:02:59]} 9. Bd3 {[%clk 0:02:59]}  Re8 {[%clk 0:02:46]} 10. O-O-O {[%clk 0:02:58]}  Na6 {[%clk 0:02:31]} 11. h3 {[%clk 0:02:45]}  Bxf3 {[%clk 0:02:30]} 12. gxf3 {[%clk 0:02:45]}  Nb4 {[%clk 0:02:30]} 13. Kb1 {[%clk 0:02:33]}  Bf8 {[%clk 0:02:01]} 14. Rhg1 {[%clk 0:02:02]}  Qd5 {[%clk 0:01:43]} 15. c4 {[%clk 0:01:48]}  Qh5 {[%clk 0:01:43]} 16. Rg4 {[%clk 0:01:12]}  Rad8 {[%clk 0:01:37]} 17. Rdg1 {[%clk 0:01:10]}  Nxd3 {[%clk 0:01:25]} 18. Qxd3 {[%clk 0:01:09]}  g6 {[%clk 0:01:25]} 19. R4g3 {[%clk 0:00:47]}  b5 {[%clk 0:01:23]} 20. c5 {[%clk 0:00:40]}  Bxc5 {[%clk 0:01:19]} 21. Qc3 {[%clk 0:00:36]}  Qf5+ {[%clk 0:01:13]} 22. Ka1 {[%clk 0:00:33]}  Bf8 {[%clk 0:01:09]} 23. Qxc6 {[%clk 0:00:31]}  b4 {[%clk 0:01:04]} 24. Qc4 {[%clk 0:00:17]}  Rc8 {[%clk 0:01:00]} 25. Qb3 {[%clk 0:00:16]}  a5 {[%clk 0:00:57]} 26. h4 {[%clk 0:00:15]}  Ra8 {[%clk 0:00:49]} 27. Qd1 {[%clk 0:00:06]}  a4 {[%clk 0:00:47]} 28. Qb1 {[%clk 0:00:06]}  Qxb1+ {[%clk 0:00:38]} 29. Kxb1 {[%clk 0:00:07]}  b3 {[%clk 0:00:38]} 30. h5 {[%clk 0:00:07]}  Ra5 {[%clk 0:00:30]} 31. hxg6 {[%clk 0:00:07]}  fxg6 {[%clk 0:00:30]} 32. f4 {[%clk 0:00:07]}  Kf7 {[%clk 0:00:30]} 33. Rh1 {[%clk 0:00:07]}  h5 {[%clk 0:00:24]} 34. Bd2 {[%clk 0:00:07]}  Rd5 {[%clk 0:00:21]} 35. axb3 {[%clk 0:00:07]}  axb3 {[%clk 0:00:20]} 36. Rxb3 {[%clk 0:00:07]}  Rxd4 {[%clk 0:00:19]} 37. Bc3 {[%clk 0:00:07]}  Rd5 {[%clk 0:00:18]} 38. Rb6 {[%clk 0:00:07]}  Rd6 {[%clk 0:00:18]} 39. Rxd6 {[%clk 0:00:06]}  Bxd6 {[%clk 0:00:18]} 40. Rd1 {[%clk 0:00:05]}  Bxf4 {[%clk 0:00:18]} 41. Rd7+ {[%clk 0:00:05]}  Ke6 {[%clk 0:00:17]} 42. Rg7 {[%clk 0:00:05]}  Kf5 {[%clk 0:00:17]} 43. Rf7 {[%clk 0:00:05]}  Re6 {[%clk 0:00:17]} 44. Kc2 {[%clk 0:00:05]}  h4 {[%clk 0:00:17]} 45. Rh7 {[%clk 0:00:04]}  g5 {[%clk 0:00:15]} 46. b4 {[%clk 0:00:04]}  Re2+ {[%clk 0:00:15]} 47. Kd3 {[%clk 0:00:04]}  Rxf2 {[%clk 0:00:15]} 48. b5 {[%clk 0:00:04]}  Rf3+ {[%clk 0:00:14]} 49. Kc4 {[%clk 0:00:05]}  Be5 {[%clk 0:00:12]} 50. Bxe5 {[%clk 0:00:04]}  Kxe5 {[%clk 0:00:11]} 51. Kc5 {[%clk 0:00:02]}  Rc3+ {[%clk 0:00:11]} 52. Kb6 {[%clk 0:00:02]}  Kf4 {[%clk 0:00:10]} 53. Ka7 {[%clk 0:00:02]}  Ra3+ {[%clk 0:00:07]} 54. Kb7 {[%clk 0:00:02]}  Rb3 {[%clk 0:00:07]} 55. b6 {[%clk 0:00:03]}  Kg3 {[%clk 0:00:07]} 56. Kc7 {[%clk 0:00:03]}  g4 {[%clk 0:00:06]} 57. Rf7 {[%clk 0:00:02]}  h3 {[%clk 0:00:05]} 58. Rxf6 {[%clk 0:00:02]}  h2 {[%clk 0:00:05]} 59. Rh6 {[%clk 0:00:02]}  Kg2 {[%clk 0:00:04]} 60. Rh4 {[%clk 0:00:02]}  g3 {[%clk 0:00:04]} 61. b7 {[%clk 0:00:03]}  Rxb7+ {[%clk 0:00:04]} 62. Kxb7 {[%clk 0:00:04]}  h1=Q {[%clk 0:00:03]} 63. Rc4 {[%clk 0:00:04]}  Qh7+ {[%clk 0:00:03]} 64. Kb6 {[%clk 0:00:04]}  Qg6+ {[%clk 0:00:03]} 65. Kb5 {[%clk 0:00:04]}  Qf5+ {[%clk 0:00:03]} 66. Kb4 {[%clk 0:00:05]}  Qb1+ {[%clk 0:00:03]} 67. Ka5 {[%clk 0:00:05]}  Qa2+ {[%clk 0:00:03]} 68. Kb4 {[%clk 0:00:05]}  Qxc4+ {[%clk 0:00:04]} 69. Kxc4 {[%clk 0:00:06]}  Kf2 {[%clk 0:00:04]} 70. Kd3 {[%clk 0:00:07]}  g2 {[%clk 0:00:05]} 71. Ke4 {[%clk 0:00:08]}  Kf1 {[%clk 0:00:06]} 72. Kd4 {[%clk 0:00:09]}  g1=Q+ {[%clk 0:00:05]} 73. Ke5 {[%clk 0:00:10]}  Qg2 {[%clk 0:00:06]} 74. Kd4 {[%clk 0:00:10]}  Qf2+ {[%clk 0:00:07]} 75. Kc3 {[%clk 0:00:10]}  Qe2 {[%clk 0:00:08]} 76. Kb4 {[%clk 0:00:11]}  Qe1+ {[%clk 0:00:08]} 77. Kb5 {[%clk 0:00:11]}  Kf2 {[%clk 0:00:09]} 78. Ka6 {[%clk 0:00:12]}  Kf3 {[%clk 0:00:10]} 79. Kb7 {[%clk 0:00:13]}  Qe6 {[%clk 0:00:09]} 80. Kb8 {[%clk 0:00:14]}  Qd7 {[%clk 0:00:09]} 81. Ka8 {[%clk 0:00:15]}  Ke4 {[%clk 0:00:09]} 82. Kb8 {[%clk 0:00:14]}  Kd5 {[%clk 0:00:10]} 83. Ka8 {[%clk 0:00:15]}  Kc6 {[%clk 0:00:10]} 84. Kb8 {[%clk 0:00:16]}  Qb7# {[%clk 0:00:10]} 0-1


[Site "https://www.chess.com"]

[Event "Titled Tuesday Blitz April 11 Early 2023"]
[White "Larina, Maria"]
[Black "Hartikainen, Jarmo"]
[WhiteFideId "24113182"]
[BlackFideId "503134"]
[WhiteElo "1848"]
[BlackElo "2054"]
[Result "1-0"]
[Round "06"]
[TimeControl "180+2"]
[Date "2023.04.11"]
[WhiteClock "0:00:23"]
[BlackClock "0:00:20"]

1. e4 {[%clk 0:03:00]}  c5 {[%clk 0:02:59]} 2. Nc3 {[%clk 0:02:59]}  Nc6 {[%clk 0:02:58]} 3. g3 {[%clk 0:02:59]}  g6 {[%clk 0:02:57]} 4. Bg2 {[%clk 0:02:59]}  Bg7 {[%clk 0:02:58]} 5. d3 {[%clk 0:02:57]}  e6 {[%clk 0:02:57]} 6. Be3 {[%clk 0:02:57]}  d6 {[%clk 0:02:55]} 7. Qd2 {[%clk 0:02:57]}  h6 {[%clk 0:02:54]} 8. Nge2 {[%clk 0:02:46]}  Nge7 {[%clk 0:02:53]} 9. O-O {[%clk 0:02:45]}  Rb8 {[%clk 0:02:53]} 10. d4 {[%clk 0:02:38]}  cxd4 {[%clk 0:02:51]} 11. Nxd4 {[%clk 0:02:38]}  a6 {[%clk 0:01:44]} 12. Rad1 {[%clk 0:02:30]}  Ne5 {[%clk 0:01:35]} 13. b3 {[%clk 0:02:24]}  Ng4 {[%clk 0:01:30]} 14. h3 {[%clk 0:02:14]}  Nxe3 {[%clk 0:01:29]} 15. fxe3 {[%clk 0:02:11]}  O-O {[%clk 0:01:24]} 16. Nce2 {[%clk 0:02:02]}  Qb6 {[%clk 0:01:07]} 17. c4 {[%clk 0:01:58]}  Bd7 {[%clk 0:00:51]} 18. Kh2 {[%clk 0:01:57]}  Rbd8 {[%clk 0:00:49]} 19. Nc3 {[%clk 0:01:47]}  Bc6 {[%clk 0:00:47]} 20. Nxc6 {[%clk 0:01:36]}  Nxc6 {[%clk 0:00:43]} 21. Ne2 {[%clk 0:01:30]}  Ne5 {[%clk 0:00:34]} 22. Nd4 {[%clk 0:01:26]}  Qc5 {[%clk 0:00:23]} 23. Rf2 {[%clk 0:01:18]}  b5 {[%clk 0:00:22]} 24. cxb5 {[%clk 0:01:12]}  axb5 {[%clk 0:00:22]} 25. Rc1 {[%clk 0:01:12]}  Qb6 {[%clk 0:00:23]} 26. Qe2 {[%clk 0:01:09]}  b4 {[%clk 0:00:22]} 27. Rff1 {[%clk 0:00:59]}  Qb7 {[%clk 0:00:21]} 28. Rfd1 {[%clk 0:00:55]}  Rc8 {[%clk 0:00:21]} 29. Rxc8 {[%clk 0:00:51]}  Rxc8 {[%clk 0:00:21]} 30. Nb5 {[%clk 0:00:49]}  Qa6 {[%clk 0:00:20]} 31. Rxd6 {[%clk 0:00:45]}  Rc6 {[%clk 0:00:20]} 32. Rxc6 {[%clk 0:00:34]}  Qxc6 {[%clk 0:00:21]} 33. Nd4 {[%clk 0:00:33]}  Qc3 {[%clk 0:00:21]} 34. Nb5 {[%clk 0:00:23]}  Nd3 {[%clk 0:00:20]} 35. Nxc3 {[%clk 0:00:22]}  bxc3 {[%clk 0:00:20]} 36. Qxd3 {[%clk 0:00:22]}  c2 {[%clk 0:00:20]} 37. Qxc2 {[%clk 0:00:23]} 1-0


[Site "https://www.chess.com"]